Cogmind - Beta 9.4 @@@ ROGUE MODE // 2020.01.31 @ 00:20:16 Player: Ryker Result: Destroyed by H-66 Slayer with Heavy Assault Rifle Performance ------------- Evolutions (4) 2000 Regions Visited (11) 2200 Robots Destroyed (83) 415 Value Destroyed (4258) 4258 Prototype IDs (31) 620 Alien Tech Used (0) 0 Bonus (1066) 1066 TOTAL SCORE: 10559 Bonus ------- High Alert Combat Kills 265 Follower Combat Kills 301 Entered Garrisons 200 Aligned with FarCom 300 Cogmind --------- Core Integrity 0/850 Matter 272/300 Energy 92/300 System Corruption 1% Temperature Cool (0) Movement Walking (150) Ox1 Location -6/Extension Parts ------- > --- POWER (1) -------- Angular Momentum Engine > --- PROPULSION (4) --- Carbon-fiber Leg Flexi-carbon Leg Flexi-carbon Leg Flexi-carbon Leg > --- UTILITY (7) ------ Advanced Heat Sink Large Storage Unit High-capacity Storage Unit Advanced Targeting Computer Advanced Targeting Computer Layered Medium Armor Plating Force Field > --- WEAPON (3) ------- Gauss Rifle Mass Driver Mass Driver > --- INVENTORY (18) --- Neutrino Core Humpback Matter Compressor (250) Advanced Signal Interpreter Advanced Salvage Targeting Computer Advanced Targeting Computer Weapon Cycler Relay Coupler [Grunt] (30) Relay Coupler [Sentry] (22) Relay Coupler [Hunter] (19) Variable Charge Gun Precision Rocket Launcher Peak State ------------ > --- POWER ------------ Improved Deuterium Engine > --- PROPULSION ------- Flexi-carbon Leg Myomer Leg Myomer Leg Myomer Leg > --- UTILITY ---------- Advanced Heat Sink Advanced Heat Sink Large Storage Unit High-capacity Storage Unit Advanced Targeting Computer Advanced Targeting Computer Weapon Cycler > --- WEAPON ----------- Variable Charge Gun Variable Charge Gun Mass Driver > --- INVENTORY -------- Angular Momentum Engine Neutrino Core Humpback Matter Compressor Advanced Signal Interpreter Advanced Salvage Targeting Computer Advanced Targeting Computer Force Field Relay Coupler [Grunt] Relay Coupler [Sentry] Relay Coupler [Hunter] Gatling Laser Gauss Rifle Mass Driver Mass Driver Precision Rocket Launcher [Rating: 77] Favorites ----------- Power Improved Deuterium Engine Engine Improved Deuterium Engine Power Core Light Nuclear Core Reactor Light Antimatter Reactor Propulsion Potential Leg Treads Light Treads Leg Potential Leg Utility Large Storage Unit Device Advanced Heat Sink Storage Large Storage Unit Processor Advanced Targeting Computer Protection Hardened Medium Armor Plating Weapon Mass Driver Energy Gun Variable Charge Gun Energy Cannon Phase Cannon Ballistic Gun High-powered Shotgun Ballistic Cannon Mass Driver Launcher Heavy Missile Launcher Special Weapon Mining Laser Build | -11 -10 -10 -10 -9 -8 -7 -7 -7 -6 -6 -6 ------- Run | Scr Mat Min Exi Min Mat Fac Low Low Fac Gar Ext Slots Evolved 8 | . . . . . 4 2 . . 2 . . Power . | . . . . . . . . . . . . Propulsion 2 | . . . . . 1 . . . 1 . . Utility 5 | . . . . . 2 2 . . 1 . . Weapon 1 | . . . . . 1 . . . . . . Parts Attached 197 | 10 6 15 7 1 36 20 11 2 36 33 20 Power 19 | 1 . 3 . . 4 2 3 . 2 3 1 Engine 15 | 1 . 2 . . 2 2 3 . 2 2 1 Core 3 | . . 1 . . 2 . . . . . . Reactor 1 | . . . . . . . . . . 1 . Propulsion 50 | 5 1 6 2 . 7 2 1 . 7 10 9 Treads 5 | 2 . . . . . . . . . 2 1 Leg 45 | 3 1 6 2 . 7 2 1 . 7 8 8 Wheel . | . . . . . . . . . . . . Hover . | . . . . . . . . . . . . Flight . | . . . . . . . . . . . . Utility 61 | 2 . 3 5 . 13 8 3 2 18 5 2 Device 37 | . . 2 1 . 10 4 1 1 12 5 1 Storage 9 | 2 . . 4 . . 1 . 1 1 . . Processor 5 | . . . . . 1 1 . . 3 . . Hackware . | . . . . . . . . . . . . Protection 10 | . . 1 . . 2 2 2 . 2 . 1 Artifact . | . . . . . . . . . . . . Weapon 67 | 2 5 3 . 1 12 8 4 . 9 15 8 Energy Gun 16 | 1 2 . . . 1 . . . 2 6 4 Energy Cannon 18 | . . 1 . . 7 6 3 . 1 . . Ballistic Gun 15 | 1 1 1 . . 2 . . . 3 5 2 Ballistic Cannon 9 | . . . . . 1 2 . . . 4 2 Launcher 8 | . 2 1 . . 1 . 1 . 3 . . Special Weapon 1 | . . . . 1 . . . . . . . Impact Weapon . | . . . . . . . . . . . . Slashing Weapon . | . . . . . . . . . . . . Piercing Weapon . | . . . . . . . . . . . . Special Melee Weapon . | . . . . . . . . . . . . Unidentified Prototypes 3 | . . . . . . 2 . . 1 . . Parts Lost 39 | . . . . . 7 1 2 . 8 13 8 Power 3 | . . . . . 1 . . . . 1 1 Propulsion 12 | . . . . . 1 . . . 1 7 3 Utility 6 | . . . . . 1 . 1 . 2 1 1 Weapon 18 | . . . . . 4 1 1 . 5 4 3 Highest Loss Streak 9 | . . . . . 4 1 1 . 7 9 5 Average Slot Usage (%) 97 | . 100 99 100 100 99 99 99 100 91 96 98 Engine 5 | . 14 10 . . 1 7 7 7 6 2 5 Core 3 | . . 3 14 14 7 . . . . . . Leg 25 | . 28 28 28 28 26 23 23 23 25 21 24 Device 10 | . . 3 7 . 9 12 6 7 10 15 19 Storage 16 | . 28 23 20 28 18 15 15 15 13 13 13 Processor 8 | . . . . . 7 9 15 15 8 16 13 Protection 2 | . . . . . 1 6 7 7 6 . . Energy Gun 2 | . 9 . . . . . . . . 5 9 Energy Cannon 8 | . . 13 14 14 9 15 13 15 11 . . Ballistic Gun 4 | . 14 13 14 11 4 . . . . 4 . Ballistic Cannon 4 | . . . . . 6 6 4 . . 10 9 Launcher 1 | . 4 . . . 2 . 2 7 5 . . Naked Turns . | . . . . . . . . . . . . Heaviest Build 105 | 15 17 26 46 46 60 73 74 90 105 88 93 Greatest Support 100 | 20 20 20 60 60 75 78 78 75 100 90 95 Greatest Overweight (x) 28 | 1 . 2 1 . . 1 . 1 1 28 2 Average Overweight (x) . | . . 1 . . . . . . . 1 . Largest Inventory Capacity 18 | 8 8 8 18 16 16 16 16 18 18 18 18 Average Capacity 15 | 6 8 7 10 16 16 16 16 17 18 18 18 Most Carried 18 | 7 8 8 12 13 16 16 16 17 18 18 18 Average Carried 13 | 4 7 7 7 12 14 15 15 16 16 16 17 Final Capacity 18 | 8 8 6 16 16 16 16 16 18 18 18 18 Final Carried 18 | 7 8 6 12 13 16 16 16 17 12 18 13 Class Distribution -------------------- 43% | Mutant 24% | Scavenger-Mutant 17% | Skirmisher 13% | Scavenger-Gunner Dominant Class ---------------- Mutant | -10/Materials Mutant | -10/Mines Mutant | -10/Exiles Mutant | -9/Mines Skirmisher | -8/Materials Skirmisher | -7/Factory Mutant | -7/Lower Caves Mutant | -7/Lower Caves Scavenger-Mutant | -6/Factory Scavenger-Mutant | -6/Garrison Scavenger-Gunner | -6/Extension Resources | -11 -10 -10 -10 -9 -8 -7 -7 -7 -6 -6 -6 ----------- Run | Scr Mat Min Exi Min Mat Fac Low Low Fac Gar Ext Matter Collected 3801 | 311 124 214 70 . 436 233 409 20 389 962 633 Remotely . | . . . . . . . . . . . . Salvage Created 3357 | 142 243 167 . . 618 233 146 . 522 1111 175 Parts 170 | 10 18 16 . . 30 12 8 . 24 45 7 Haulers Intercepted 2 | . . . . . 1 . . . 1 . . Recyclers Shooed 5 | . 3 . . . . . . . 2 . . Parts Field Recycled . | . . . . . . . . . . . . Retrieved Matter . | . . . . . . . . . . . . Parts Self-Destructed 8 | . . . . . . . 8 . . . . Prevented 1 | . . . . . . . . 1 . . . Kills | -11 -10 -10 -10 -9 -8 -7 -7 -7 -6 -6 -6 ------- Run | Scr Mat Min Exi Min Mat Fac Low Low Fac Gar Ext Combat Hostiles Destroyed 69 | . 3 6 . . 12 4 6 . 10 23 5 Guns 26 | . . 3 . . . . . . 4 16 3 Cannons 33 | . . 1 . . 12 4 2 . 5 7 2 AOE 10 | . 3 2 . . . . 4 . 1 . . Classes Destroyed 13 | 2 4 1 . . 4 . . . 1 . 1 Worker 1 | . 1 . . . . . . . . . . Builder 1 | . 1 . . . . . . . . . . Tunneler 4 | 3 1 . . . . . . . . . . Hauler 2 | . . . . . 1 . . . 1 . . Recycler 3 | 1 2 . . . . . . . . . . Watcher 3 | . 1 . . . 1 . . . . . 1 Swarmer 14 | . 3 2 . . . . 3 . 3 3 . Grunt 24 | . . 4 . . 5 . 2 . 4 9 . Brawler 2 | . . . . . 1 . . . . 1 . Sentry 18 | . . . . . 4 3 . . 1 7 3 Hunter 8 | . . . . . 2 1 1 . . 3 1 Programmer 2 | . . . . . . . . . 2 . . Behemoth 1 | . . . . . . . . . . . 1 Best Kill Streak 5 | 2 4 2 . . 2 3 3 . 3 5 2 Combat Bots Only 5 | . 3 2 . . 2 3 3 . 3 5 2 Max Kills in Single Turn 4 | 1 4 2 . . 1 1 3 . 1 2 1 Gunslinging 1 | . . . . . . . . . . 1 . Exploded 3 | . 3 2 . . . . 3 . 1 . . Melee . | . . . . . . . . . . . . Uniques/NPCs Destroyed . | . . . . . . . . . . . . Combat | -11 -10 -10 -10 -9 -8 -7 -7 -7 -6 -6 -6 -------- Run | Scr Mat Min Exi Min Mat Fac Low Low Fac Gar Ext Damage Taken 8998 | . 170 319 . . 1748 510 752 . 2178 1738 1583 Core 1332 | . 9 85 . . 280 24 82 . 483 162 207 Absorbed by Shields 30 | . . . . . . . . . . . 30 Core Remaining (%) 73 | 100 . . . 62 49 . . 84 . . . Volleys Fired 317 | 11 29 16 . 1 50 14 14 . 50 98 34 Largest 3 | 2 2 2 . 1 3 3 3 . 2 3 3 Hottest 217 | 60 60 85 . 100 190 208 196 . 180 217 213 Shots Fired 586 | 22 50 19 . 1 95 30 23 . 78 182 86 Gun 262 | 22 45 11 . . 11 . . . 22 114 37 Cannon 294 | . . 7 . . 71 30 21 . 48 68 49 Launcher 26 | . 5 1 . . 10 . 2 . 8 . . Special 4 | . . . . 1 3 . . . . . . Kinetic 271 | 11 24 11 . . 28 2 9 . . 129 57 Thermal 283 | 11 21 7 . 1 57 28 10 . 66 53 29 Explosive 25 | . 5 1 . . 10 . 2 . 7 . . Electromagnetic 7 | . . . . . . . 2 . 5 . . Robot Hit Streak 66 | 9 5 3 . . 8 11 12 . 19 66 20 Robot Miss Streak 7 | 3 4 4 . . 5 3 6 . 7 3 3 Penetration Max 1 | . . . . . . . . . . . 1 Secondary Targets 4 | . . . . . . . . . 1 3 . Max Gunslinging Chain 2 | . . . . . . . . . 1 2 . Shots Hit Robots 357 | 17 24 11 . . 47 18 10 . 49 120 61 Core Hits 228 | 7 14 10 . . 37 9 9 . 21 108 13 Critical Hits 5 | . . . . . . 2 1 . 2 . . Critical Kills 3 | . . . . . . 2 1 . . . . Critical Parts Destroyed 2 | . . . . . . . . . 2 . . Melee Attacks . | . . . . . . . . . . . . Impact . | . . . . . . . . . . . . Slashing . | . . . . . . . . . . . . Piercing . | . . . . . . . . . . . . Sneak Attacks . | . . . . . . . . . . . . Combat Hostiles . | . . . . . . . . . . . . Follow-up Attacks . | . . . . . . . . . . . . Damage Inflicted 9885 | 183 416 335 . . 1592 385 421 . 1815 2820 1918 Guns 3484 | 183 235 119 . . 49 . . . 364 1845 689 Cannons 4630 | . . 91 . . 839 385 202 . 927 975 1211 Explosions 1740 | . 181 125 . . 704 . 219 . 511 . . Melee . | . . . . . . . . . . . . Ramming 31 | . . . . . . . . . 13 . 18 Kinetic 4113 | 83 122 119 . . 175 22 136 . . 2074 1382 Thermal 3938 | 100 133 91 . . 713 363 66 . 1208 746 518 Explosive 1581 | . 161 125 . . 670 . 219 . 406 . . Electromagnetic 222 | . . . . . 34 . . . 188 . . Impact . | . . . . . . . . . . . . Slashing . | . . . . . . . . . . . . Piercing . | . . . . . . . . . . . . Highest Corruption 3 | . . . . . 3 . . . 1 1 1 Average Corruption 1 | . . . . . 3 . . . 1 1 1 Corruption Purged . | . . . . . . . . . . . . Effects 15 | . . . . . 3 . . . 1 5 6 Message Errors 6 | . . . . . 1 . . . . 2 3 Matter Fused 1 | . . . . . 1 . . . . . . Energy Discharges 1 | . . . . . . . . . . . 1 Data Loss (minor) 5 | . . . . . 1 . . . 1 2 1 Targeting Errors 1 | . . . . . . . . . . 1 . Weapon Failures 1 | . . . . . . . . . . . 1 Overload Shots . | . . . . . . . . . . . . Overflow Damage 106 | . . . . . 22 . . . 63 21 . Projectiles 76 | . . . . . 8 . . . 47 21 . Explosions 30 | . . . . . 14 . . . 16 . . Melee . | . . . . . . . . . . . . Knockbacks 14 | . . . . . 3 1 1 . . 7 2 Impact . | . . . . . . . . . . . . Kinetic 14 | . . . . . 3 1 1 . . 7 2 Secondary . | . . . . . . . . . . . . Self-Inflicted Damage 58 | . 29 4 . . 25 . . . . . . Shots 4 | . 1 1 . . 2 . . . . . . Rammed . | . . . . . . . . . . . . Targets Rammed 4 | . . . . . . . . . 1 . 3 Kicked 4 | . . . . . . . . . 1 . 3 Crushed . | . . . . . . . . . . . . Highest Temperature 616 | 40 40 257 . 28 616 303 318 . 547 294 108 Average Temperature 111 | 20 19 120 . 16 123 105 129 . 194 100 42 Received Heat Transfer 1704 | . . 156 . . 414 114 93 . 276 375 276 Effects 19 | . . . . . 13 . . . 6 . . Shutdowns 4 | . . . . . 2 . . . 2 . . Energy Bleed 1 | . . . . . . . . . 1 . . Interference 5 | . . . . . 4 . . . 1 . . Matter Decay 1 | . . . . . . . . . 1 . . Damage (minor) 3 | . . . . . 3 . . . . . . Damage (major) 3 | . . . . . 3 . . . . . . Damage (core) 2 | . . . . . 1 . . . 1 . . Siege Activations . | . . . . . . . . . . . . Robots Corrupted . | . . . . . . . . . . . . Combat Hostiles . | . . . . . . . . . . . . Parts Fried . | . . . . . . . . . . . . Impact Corruptions . | . . . . . . . . . . . . Robots Melted . | . . . . . . . . . . . . Combat Hostiles . | . . . . . . . . . . . . Parts Melted 14 | . . . . . 2 3 . . 5 4 . Heat Transferred 6620 | 225 300 148 . . 1165 683 124 . 1517 1607 851 Parts Sabotaged . | . . . . . . . . . . . . Parts Stolen . | . . . . . . . . . . . . Parts Stripped . | . . . . . . . . . . . . Power Chain Reactions . | . . . . . . . . . . . . Missiles Intercepted . | . . . . . . . . . . . . Alert | -11 -10 -10 -10 -9 -8 -7 -7 -7 -6 -6 -6 ------- Run | Scr Mat Min Exi Min Mat Fac Low Low Fac Gar Ext Peak Influence 940 | 20 175 80 . . 203 220 . . 201 940 675 Average Influence 227 | 7 101 36 . . 52 81 . . 58 560 485 Maximum Alert Level 3 | . . . . . 1 1 . . 1 3 2 Low Security (%) 65 | 100 100 100 . 100 96 95 . . 96 13 . Level 1 6 | . . . . . 3 4 . . 3 11 21 Level 2 21 | . . . . . . . . . . 47 78 Level 3 6 | . . . . . . . . . . 27 . Level 4 . | . . . . . . . . . . . . Level 5 . | . . . . . . . . . . . . High Security . | . . . . . . . . . . . . Max Security . | . . . . . . . . . . . . Squads Dispatched 15 | . . 1 . . 6 2 . . 4 . 2 Investigation 4 | . . 1 . . 3 . . . . . . Extermination 3 | . . . . . . 1 . . 2 . . Reinforcement 5 | . . . . . 2 1 . . . . 2 Assault . | . . . . . . . . . . . . Garrison 3 | . . . . . 1 . . . 2 . . Intercept . | . . . . . . . . . . . . Construction Impeded 2 | . . . . . 1 . . . . . 1 Haulers Reinforced . | . . . . . . . . . . . . Stealth | -11 -10 -10 -10 -9 -8 -7 -7 -7 -6 -6 -6 --------- Run | Scr Mat Min Exi Min Mat Fac Low Low Fac Gar Ext Distress Signals 9 | . 2 . . . 4 1 . . 1 . 1 Communications Jammed . | . . . . . . . . . . . . Distress Signals . | . . . . . . . . . . . . Times Spotted 129 | . 10 7 . . 29 9 12 . 20 25 17 Peak Tracking Total 7 | . 3 3 . . 7 4 3 . 6 5 4 Tactical Retreats 15 | . 1 . . . 5 . 2 . 4 2 1 Traps | -11 -10 -10 -10 -9 -8 -7 -7 -7 -6 -6 -6 ------- Run | Scr Mat Min Exi Min Mat Fac Low Low Fac Gar Ext Traps Triggered 13 | . . . . . 1 1 . . . 11 . Indirectly . | . . . . . . . . . . . . Trap Hack Attempts . | . . . . . . . . . . . . Triggered . | . . . . . . . . . . . . Disarmed . | . . . . . . . . . . . . Reprogrammed . | . . . . . . . . . . . . Reused . | . . . . . . . . . . . . Traps Extracted . | . . . . . . . . . . . . Installed . | . . . . . . . . . . . . Triggered 3 | . . 1 . . . . . 2 . . . Machines | -11 -10 -10 -10 -9 -8 -7 -7 -7 -6 -6 -6 ---------- Run | Scr Mat Min Exi Min Mat Fac Low Low Fac Gar Ext Machines Disabled 21 | . 2 . . . 7 6 . . 1 4 1 Max in Single Turn 2 | . 2 . . . 2 . . . 1 1 1 Garrison Relay 4 | . . . . . . . . . . 4 . Machines Sabotaged . | . . . . . . . . . . . . Garrisons Compromised . | . . . . . . . . . . . . Overloaded Fab Kills . | . . . . . . . . . . . . Fab Network Shutdowns . | . . . . . . . . . . . . Hacking | -11 -10 -10 -10 -9 -8 -7 -7 -7 -6 -6 -6 --------- Run | Scr Mat Min Exi Min Mat Fac Low Low Fac Gar Ext Machines Accessed 27 | . 3 1 5 . 11 1 . . 2 . 4 Terminals 13 | . 2 . . . 6 1 . . . . 4 Fabricators . | . . . . . . . . . . . . Repair Stations 1 | . . . . . 1 . . . . . . Recycling Units 2 | . 1 . . . 1 . . . . . . Scanalyzers 3 | . . . . . 2 . . . 1 . . Garrison Access 2 | . . . . . 1 . . . 1 . . Total Hacks 119 | . 5 1 49 . 51 2 . . 5 . 6 Successful 96 | . 5 1 49 . 33 2 . . 3 . 3 Failed 23 | . . . . . 18 . . . 2 . 3 Catastrophic 3 | . . . . . 1 . . . . . 2 Database Lockouts . | . . . . . . . . . . . . Manual 2 | . . . 2 . . . . . . . . Terminals 37 | . 3 . . . 26 2 . . . . 6 Fabricators . | . . . . . . . . . . . . Repair Stations 5 | . . . . . 5 . . . . . . Recycling Units 3 | . 2 . . . 1 . . . . . . Scanalyzers 19 | . . . . . 15 . . . 4 . . Garrison Access 5 | . . . . . 4 . . . 1 . . Terminal Hacks 73 | . 3 1 49 . 15 2 . . . . 3 Record 59 | . 1 . 48 . 5 2 . . . . 3 Robot Analysis 1 | . . . . . 1 . . . . . . Prototype ID Bank 3 | . 1 . . . 2 . . . . . . Open Door 1 | . . 1 . . . . . . . . . Level Access Points 1 | . . . . . 1 . . . . . . Emergency Access Points 1 | . . . . . 1 . . . . . . Alert Level 2 | . 1 . . . 1 . . . . . . Dispatch Records 1 | . . . . . 1 . . . . . . Recall Investigation 1 | . . . . . 1 . . . . . . Hauler Manifests 1 | . . . . . 1 . . . . . . Zone Layout 1 | . . . . . 1 . . . . . . EX-Prototype ID Bank 1 | . . . 1 . . . . . . . . Fabricator Hacks . | . . . . . . . . . . . . Repair Station Hacks 3 | . . . . . 3 . . . . . . Scan Component 2 | . . . . . 2 . . . . . . Repair 1 | . . . . . 1 . . . . . . Recycling Unit Hacks 3 | . 2 . . . 1 . . . . . . Report Inventory 2 | . 1 . . . 1 . . . . . . Retrieve Components 1 | . 1 . . . . . . . . . . Scanalyzer 15 | . . . . . 13 . . . 2 . . Insert Component 9 | . . . . . 8 . . . 1 . . Analyze 6 | . . . . . 5 . . . 1 . . Garrison Access Hacks 2 | . . . . . 1 . . . 1 . . Unlock Access 1 | . . . . . . . . . 1 . . Coupler Status 1 | . . . . . 1 . . . . . . Unauthorized Hacks . | . . . . . . . . . . . . Terminals . | . . . . . . . . . . . . Fabricators . | . . . . . . . . . . . . Repair Stations . | . . . . . . . . . . . . Recycling Units . | . . . . . . . . . . . . Scanalyzers . | . . . . . . . . . . . . Garrison Access . | . . . . . . . . . . . . Data Cores Recovered . | . . . . . . . . . . . . Used . | . . . . . . . . . . . . Hacking Detections 18 | . 1 . . . 10 1 . . 2 . 4 Full Trace Events 3 | . . . . . 3 . . . . . . Feedback Events . | . . . . . . . . . . . . Feedback Blocked . | . . . . . . . . . . . . Robot Schematics Acquired . | . . . . . . . . . . . . Robots Built . | . . . . . . . . . . . . Matter . | . . . . . . . . . . . . Time . | . . . . . . . . . . . . Total Robot Build Rating . | . . . . . . . . . . . . Part Schematics Acquired 6 | . . . . . 5 . . . 1 . . Parts Built . | . . . . . . . . . . . . Matter . | . . . . . . . . . . . . Time . | . . . . . . . . . . . . Total Part Build Rating . | . . . . . . . . . . . . Parts Repaired 1 | . . . . . 1 . . . . . . Time 26 | . . . . . 26 . . . . . . Parts Recycled . | . . . . . . . . . . . . Recycled Matter . | . . . . . . . . . . . . Retrieved Matter . | . . . . . . . . . . . . Retrieved Components 10 | . 10 . . . . . . . . . . Parts Scanalyzed 6 | . . . . . 5 . . . 1 . . Part Schematics Acquired 6 | . . . . . 5 . . . 1 . . Parts Damaged . | . . . . . . . . . . . . Bothacking | -11 -10 -10 -10 -9 -8 -7 -7 -7 -6 -6 -6 ------------ Run | Scr Mat Min Exi Min Mat Fac Low Low Fac Gar Ext Used RIF Installer . | . . . . . . . . . . . . Robots Hacked . | . . . . . . . . . . . . Non-combat . | . . . . . . . . . . . . Combat . | . . . . . . . . . . . . Robot Hacks Applied . | . . . . . . . . . . . . Relay Couplers Released 17 | . . . . . . . . . . 17 . Machine Destruction 17 | . . . . . . . . . . 17 . Robots Rewired 7 | . . . . . . . . . . . 7 Allies Hacked . | . . . . . . . . . . . . Hacks Repelled . | . . . . . . . . . . . . Allies | -11 -10 -10 -10 -9 -8 -7 -7 -7 -6 -6 -6 -------- Run | Scr Mat Min Exi Min Mat Fac Low Low Fac Gar Ext Total Allies 12 | . . . . 1 . 3 . . . . 8 Largest Group 6 | . . . . 1 1 3 . . . . 6 Highest-Rated Group 181 | . . . . 31 31 93 . . . . 181 Highest-Rated Ally 37 | . . . . 31 31 31 . . . . 37 Total Orders 7 | . . . . . . . . . 6 . 1 ROAM 1 | . . . . . . . . . . . 1 EXPLORE 1 | . . . . . . . . . 1 . . RETURN 5 | . . . . . . . . . 5 . . Ally Attacks 70 | . . . . . 9 3 . . . . 58 Total Damage 1825 | . . . . . 172 591 . . . . 1062 Kills 14 | . . . . . . 5 . . . . 9 Allies Corrupted . | . . . . . . . . . . . . Allies Melted . | . . . . . . . . . . . . Intel | -11 -10 -10 -10 -9 -8 -7 -7 -7 -6 -6 -6 ------- Run | Scr Mat Min Exi Min Mat Fac Low Low Fac Gar Ext Robot Analysis Total 1 | . . . . . 1 . . . . . . Derelict Logs Recovered 4 | . . 2 . . . . 1 1 . . . Drone Launches 5 | . . . . . . . . . 5 . . Drone Recoveries 5 | . . . . . . . . . 5 . . Exploration | -11 -10 -10 -10 -9 -8 -7 -7 -7 -6 -6 -6 ------------- Run | Scr Mat Min Exi Min Mat Fac Low Low Fac Gar Ext Turns Passed 9480 | 156 418 920 924 108 1431 526 568 439 1271 1702 1017 Spaces Moved 6080 | 75 248 541 881 94 792 409 502 354 711 862 611 Core 18 | 16 . . . . . . . . . 2 . Treads . | . . . . . . . . . . . . Legs 6062 | 59 248 541 881 94 792 409 502 354 711 860 611 Wheels . | . . . . . . . . . . . . Hover . | . . . . . . . . . . . . Flight . | . . . . . . . . . . . . Fastest Speed 50 | 50 120 120 90 90 90 100 90 100 105 105 120 Average Speed 121 | 106 120 154 102 90 99 101 99 123 133 149 127 Slowest Speed 1450 | 120 120 180 150 90 100 130 100 136 140 1450 180 Overloaded Moves . | . . . . . . . . . . . . Propulsion Burnouts . | . . . . . . . . . . . . Robots Hopped . | . . . . . . . . . . . . Cave-ins Triggered 2 | . . . . . 1 . . . 1 . . Exploration Rate (%) 47 | 5 43 95 94 16 53 11 64 33 12 91 53 Regions Visited 11 Branch Regions 6 Pre-discovered Areas 4 | . . 2 1 . . . 1 . . . . Known Exits Taken 6 | . . . 1 . 1 1 1 1 1 . . Unknown Exits Taken 4 | 1 1 1 . 1 . . . . . . . Scrap Searched 8 | . . 2 . . . . 4 2 . . . Spaces Dug 9 | . . . . 1 5 . . . . 3 . Terrain Destroyed 302 | . 21 10 . 1 58 1 43 . 138 16 14 Melee . | . . . . . . . . . . . . Projectile 73 | . . 1 . 1 17 1 7 . 16 16 14 AOE 229 | . 21 9 . . 41 . 36 . 122 . . Actions | -11 -10 -10 -10 -9 -8 -7 -7 -7 -6 -6 -6 --------- Run | Scr Mat Min Exi Min Mat Fac Low Low Fac Gar Ext Total 7734 | 132 325 612 905 113 1342 497 549 356 961 1141 801 Wait 735 | 21 30 20 . 17 411 23 4 . 113 44 52 Move 6068 | 74 247 540 880 93 790 408 501 353 711 860 611 Hop . | . . . . . . . . . . . . Pick Up 143 | 13 6 7 10 1 28 13 7 1 20 30 7 Fast Attach 32 | 1 . 1 . . 6 4 2 . 6 7 5 Attach 65 | 9 1 3 3 . 10 5 2 1 12 10 9 Detach 14 | 3 . 1 2 . 2 1 . . 2 2 1 Swap 101 | . 5 11 4 1 20 12 7 1 18 16 6 Drop 141 | . 7 13 6 . 24 17 12 . 26 24 12 Fire 317 | 11 29 16 . 1 50 14 14 . 50 98 34 Melee . | . . . . . . . . . . . . Ram . | . . . . . . . . . . . . Kick 4 | . . . . . . . . . 1 . 3 Crush . | . . . . . . . . . . . . Escape Stasis 51 | . . . . . 1 . . . . 50 . Rewire 61 | . . . . . . . . . . . 61 Trap . | . . . . . . . . . . . . Miscellaneous 2 | . . . . . . . . . 2 . . Route ------- -11/Scrapyard -10/Materials -10/Mines (discovered 3 exits: [*Mat x2] / *Exi) -10/Exiles (discovered 2 exits: *Min x2) -9/Mines -8/Materials (discovered 3 exits: *Fac x3) -7/Factory -7/Lower Caves -7/Lower Caves -6/Factory -6/Garrison (discovered 3 exits: *Ext x3) -6/Extension History --------- Turn | Location | Event 8 | -11/Scrapyard | Discovered new exit (range 14) 157 | -11/Scrapyard | Entered Materials 300 | -10/Materials | Build established: Mutant 557 | -10/Materials | Discovered new exit (range 13) 575 | -10/Materials | Entered Mines 607 | -10/Mines | Met a Derelict shopkeep closing up shop 659 | -10/Mines | Discovered new exit (range 8) 821 | -10/Mines | Discovered new exit (range 16) 856 | -10/Mines | Learned location of Storage (-7) 1456 | -10/Mines | Deemed a non-threat by the Exiles lab entrance 1457 | -10/Mines | Discovered new exit (range 5) 1495 | -10/Mines | Entered Exiles 1496 | -10/Exiles | Identified exit to Mines 1575 | -10/Exiles | Met 8R-AWN 1599 | -10/Exiles | Met EX-HEX 1705 | -10/Exiles | Met EX-BIN 1723 | -10/Exiles | Aligned with FarCom system 1725 | -10/Exiles | Given EX-Vault access code 1759 | -10/Exiles | Opened EX-Vault 1772 | -10/Exiles | Found Potential Leg 1776 | -10/Exiles | Found Potential Leg 1801 | -10/Exiles | Warned to stay clear of 0b10 Research branches 1826 | -10/Exiles | Met EX-DEC 1859 | -10/Exiles | Visited The Gauntlet 2052 | -10/Exiles | Learned location of Zion (-7) 2419 | -10/Exiles | Left Exiles lab with Potential Leg 2419 | -10/Exiles | Entered Mines 2453 | -9/Mines | Met a Derelict bent on vengeance 2484 | -9/Mines | Discovered new exit (range 8) 2497 | -9/Mines | Received a Mining Laser from a helpful Derelict 2527 | -9/Mines | Entered Materials 2527 | -8/Materials | Accompanied by 1 ally 2527 | -8/Materials | Evolved 4 slots: Propulsion x1, Utility x2, Weapon x1 2628 | -8/Materials | Repaired Grenade Launcher 3063 | -8/Materials | Identified exit to Factory 3477 | -8/Materials | Build established: Skirmisher 3846 | -8/Materials | Crushed by falling debris 3939 | -8/Materials | Garrison activated, responded to threat 3956 | -8/Materials | Core integrity fell below 50% 3958 | -8/Materials | Entered Factory 3958 | -7/Factory | Evolved 2 slots: Utility x2 3976 | -7/Factory | Lost 4 parts (1p3w) 4403 | -7/Factory | Allied Derelicts emerged from ambush trap array 4420 | -7/Factory | Discovered new exit (range 20) 4483 | -7/Factory | Identified exit to Lower Caves 4484 | -7/Factory | Entered Lower Caves 4638 | -7/Lower Caves | Spotted B-75 Beast 4640 | -7/Lower Caves | Learned location of Extension (-6) 4801 | -7/Lower Caves | Build established: Mutant 5003 | -7/Lower Caves | Discovered new exit (range 5) 5009 | -7/Lower Caves | Identified exit to Lower Caves 5034 | -7/Lower Caves | Attracted the attention of an 0b10 checkpoint 5052 | -7/Lower Caves | Entered another Lower Caves area 5055 | -7/Lower Caves | Learned Factory trap positions 5092 | -7/Lower Caves | Discovered new exit (range 12) 5103 | -7/Lower Caves | Identified exit to Factory 5491 | -7/Lower Caves | Entered Factory 5491 | -6/Factory | Evolved 2 slots: Propulsion x1, Utility x1 5492 | -6/Factory | Loaded intel: 103 trap records 6096 | -6/Factory | Build established: Scavenger-Mutant 6575 | -6/Factory | Garrison activated, responded to threat 6603 | -6/Factory | Crushed by falling debris 6661 | -6/Factory | Lost 7 parts (1n2u4w) 6752 | -6/Factory | Core integrity fell below 50% 6761 | -6/Factory | Identified exit to Garrison 6762 | -6/Factory | Entered Garrison 6800 | -6/Garrison | Triggered checkpoint 6885 | -6/Garrison | Garrison Relay disabled 6946 | -6/Garrison | Triggered checkpoint 7183 | -6/Garrison | Discovered new exit (range 15) 7211 | -6/Garrison | Attempted to access garrison exit controls, blocked by remote lockdown 7492 | -6/Garrison | Triggered checkpoint 7597 | -6/Garrison | Garrison Relay disabled 7692 | -6/Garrison | Triggered checkpoint 7698 | -6/Garrison | Triggered checkpoint 7764 | -6/Garrison | Lost 9 parts (1p4n1u3w) 8006 | -6/Garrison | Discovered new exit (range 12) 8050 | -6/Garrison | Triggered checkpoint 8090 | -6/Garrison | Garrison Relay disabled 8234 | -6/Garrison | Triggered checkpoint 8287 | -6/Garrison | Discovered new exit (range 8) 8352 | -6/Garrison | Garrison Relay disabled 8410 | -6/Garrison | Triggered checkpoint 8464 | -6/Garrison | Entered Extension 8858 | -6/Extension | Core integrity fell below 20% 9056 | -6/Extension | Rescued a captive Derelict 9160 | -6/Extension | Build established: Scavenger-Gunner 9295 | -6/Extension | Spotted B-75 Beast 9339 | -6/Extension | Spotted B-75 Beast 9384 | -6/Extension | Destroyed B-75 Beast 9409 | -6/Extension | Lost 5 parts (1p2n1u1w) 9481 | -6/Extension | Destroyed by H-66 Slayer with Heavy Assault Rifle Last Messages --------------- 09390_ Acquired Imp. Medium Treads. 09392_ Slug penetrates W-25 Informer. 09392_ W-25 Informer knocked back. 09394_ Slug penetrates W-25 Informer. 09394_ Destroyed Imp. Hover Unit. 09394_ W-25 Informer destroyed. 09398_ U-05 Engineer builds a Wall. 09399_ Acquired 129 matter. 09402_ U-05 Engineer builds a Wall. 09405_ Acquired 7 matter. 09407_ U-05 Engineer builds a Wall. 09411_ Acquired 45 matter. 09414_ Acquired 9 matter. 09422_ Acquired 10 matter. 09449_ Dropped Imp. Medium Treads. 09449_ Imp. Medium Treads crushed and broken. 09450_ Acquired Carbon-fiber Leg. 09451_ Acquired 5 matter. 09481_ Slug penetrates H-66 Slayer. 09481_ Penetrated by Slug. Map ----- +----------------------------------------------------+ | ????# + #????????????????????????????? | | ????# ######## !%= #????????????????????????????? | | ##### #??????# !%[ #????????????????????????????? | | ###########+###????????????????????????????? | | ##### ^ ########??????????????????????? | | ????# ^ ^^ % [ #??????????????????????? | | ????# // ^ ! #??????????????????????? | | ????# /! ^ #######!#??????????????????????? | | #####^ /*^ ^^ #?????#[#??????????????????????? | | ! #?????#=#??????????????????????? | | #?????#%#??????????????????????? | | #?????# #??????????????????????? | | #?????# #??????????????????????? | | #######T### ### #?????#%#??????????????????????? | | ??????###?####### #?????#%#??????????????????????? | | ????????????????# #?????#%#??????????????????????? | | ???????????????## #?????#!#??????????????????????? | | ???????????????#T #?????#%#??????????????????????? | | ???????????????## #?????#*#??????????????????????? | | ????????????????# #?????#!#??????????????????????? | | ????????????????###?????#%##?????????????????????? | | ????????????????????????#=T#?????????????????????? | | ????????????????????????#!##?????????????????????? | | ????????????????????????#*#??????????????????????? | | ????????????????????????#%##?##?##???????????????? | | ??????????????????????###@### ## ### #???????????? | | ??????????????????????#"" " "" ""#?????????? | | ??????????????????????# R " " #?????????? | | ??????????????????????# #?????????? | | ???????????????##????## = R #?????????? | | ####################### h #?????????? | | ??????? | | ??????? | | ???????? | | !% ! ???????? | | R ! ????????? | | ####################### = ! ##????????? | | ??????????????????????# # ????????? | | ??????????????????????# #?????????? | | ??????????????????????# #?????????? | | ??????????????????????# #?????????? | | ??????????????????????######T#"""######??????????? | | ????????????????????????????##???????????????????? | | ?????????????????????????????????????????????????? | | | | | | | | | | | | | +----------------------------------------------------+ Best States ------------- Heat Dissipation 75 Energy Generation 21 Energy Capacity 300 Matter Stores 300 Matter Capacity 300 Sight Range 20 Robot Scan Range 10 Terrain Scan Range 20 Terrain Scan Density 10 ECM Strength 2 Armor Coverage 825 Weapon Cycling 15 Evasion (%) 50 Targeting Accuracy 24 Item Schematics ----------------- Carbon-fiber Leg | -8/Materials | Scanalyzed Lgt. Nuclear Core | -8/Materials | Scanalyzed Grenade Launcher | -8/Materials | Scanalyzed Adv. Signal Interpreter | -8/Materials | Scanalyzed System Shield | -8/Materials | Scanalyzed Drone Bay | -6/Factory | Scanalyzed Robot Schematics ------------------ None Fabricated ------------ Nothing Alien Tech Used ----------------- None Achievements -------------- Hey, That's Mine! More Dakka Please The More The Merrier Challenges ------------ None Game ------ Seed SurveybotDamperCorpse Manual? 0 Play Time 02:09:58 Cumulative 17.7 hours Start 2020.01.30 @ 22:09:44 End 2020.01.31 @ 00:20:16 Sessions 1 Manual Loads 0 Difficulty Rogue Special Mode None Game No. 15 Rogue 15 Adventurer 0 Explorer 0 Win Type - Total 0 Types 0/0/0/0/0/0/0 Lore% 18 Gallery% 23 Achievement% 19 Wizard Run 0 Options --------- ASCII 0 Keyboard 0 Movement Mouse Keybinds 0 Fullscreen 1 Font 16/SmallcapsGlow Map View 76x50 Tactical HUD 1 Map Filters NONE Filters NONE Steam 1 RUN: b172e0ca-4725-4c4e-b6a2-3b8619067469